[Event "*** SCC Grand Prix: Titled Tuesday Blitz"]
[Site "Chess.com"]
[Date "2020.10.06"]
[Round "8"]
[White "TheMagnet"]
[Black "Gabrielian_Artur"]
[Result "1/2-1/2"]
[WhiteElo "2592"]
[BlackElo "2740"]
[TimeControl "180+1"]
[EndTime "11:38:52 PDT"]
[Termination "Game drawn by 50-move rule"]

1. d4 {[%clk 0:03:00.9]} 1... Nf6 {[%clk 0:02:59.6]} 2. c4 {[%clk 0:03:01.1]}
2... c5 {[%clk 0:02:59.2]} 3. d5 {[%clk 0:03:01.3]} 3... e6 {[%clk 0:02:59.4]}
4. Nc3 {[%clk 0:03:01.6]} 4... exd5 {[%clk 0:02:59.6]} 5. cxd5 {[%clk
0:03:02.5]} 5... d6 {[%clk 0:03:00.2]} 6. e4 {[%clk 0:03:03.2]} 6... g6 {[%clk
0:03:00.3]} 7. f4 {[%clk 0:03:03.9]} 7... Bg7 {[%clk 0:03:00.3]} 8. Nf3 {[%clk
0:03:04.6]} 8... O-O {[%clk 0:02:59.4]} 9. Be2 {[%clk 0:03:05.2]} 9... Re8
{[%clk 0:02:58.8]} 10. Nd2 {[%clk 0:03:05.7]} 10... c4 {[%clk 0:02:57.7]} 11. a4
{[%clk 0:03:02.7]} 11... Nbd7 {[%clk 0:02:56.9]} 12. O-O {[%clk 0:02:58.3]}
12... Nc5 {[%clk 0:02:56.3]} 13. e5 {[%clk 0:02:49.1]} 13... dxe5 {[%clk
0:02:56.1]} 14. fxe5 {[%clk 0:02:50]} 14... Nxd5 {[%clk 0:02:53.2]} 15. Nxc4
{[%clk 0:02:33.5]} 15... Nxc3 {[%clk 0:02:48.3]} 16. bxc3 {[%clk 0:02:27.6]}
16... Qxd1 {[%clk 0:02:40.6]} 17. Rxd1 {[%clk 0:02:27.8]} 17... Nb3 {[%clk
0:02:37.6]} 18. Rb1 {[%clk 0:02:21.4]} 18... Nxc1 {[%clk 0:02:37.3]} 19. Rbxc1
{[%clk 0:02:11.8]} 19... Be6 {[%clk 0:02:36.2]} 20. Rb1 {[%clk 0:01:59.8]} 20...
b6 {[%clk 0:02:32.3]} 21. a5 {[%clk 0:01:52.9]} 21... bxa5 {[%clk 0:02:30]} 22.
Rb5 {[%clk 0:01:49]} 22... Rec8 {[%clk 0:02:15.4]} 23. Nd6 {[%clk 0:01:43.2]}
23... Rxc3 {[%clk 0:02:14.4]} 24. Rxa5 {[%clk 0:01:42.8]} 24... Re3 {[%clk
0:02:03.1]} 25. Bf3 {[%clk 0:01:40]} 25... Rb8 {[%clk 0:02:00.3]} 26. Ne4 {[%clk
0:01:30]} 26... Bf5 {[%clk 0:01:08.8]} 27. Nf6+ {[%clk 0:01:22.2]} 27... Kh8
{[%clk 0:01:00.7]} 28. Rxa7 {[%clk 0:01:14.8]} 28... Rxe5 {[%clk 0:00:58.4]} 29.
Rxf7 {[%clk 0:01:09]} 29... Be6 {[%clk 0:00:55.8]} 30. Nd7 {[%clk 0:00:56.2]}
30... Bxf7 {[%clk 0:00:45.9]} 31. Nxb8 {[%clk 0:00:54.7]} 31... Re8 {[%clk
0:00:41.5]} 32. Nc6 {[%clk 0:00:52.2]} 32... Bh6 {[%clk 0:00:34.1]} 33. Rd8
{[%clk 0:00:49.3]} 33... Rxd8 {[%clk 0:00:33]} 34. Nxd8 {[%clk 0:00:50.2]} 34...
Bc4 {[%clk 0:00:31.1]} 35. Nc6 {[%clk 0:00:49.4]} 35... Be3+ {[%clk 0:00:30.2]}
36. Kh1 {[%clk 0:00:49.4]} 36... Bf4 {[%clk 0:00:27.6]} 37. g3 {[%clk
0:00:48.3]} 37... Bd6 {[%clk 0:00:26.3]} 38. Kg2 {[%clk 0:00:48.5]} 38... Kg7
{[%clk 0:00:26]} 39. h4 {[%clk 0:00:48.6]} 39... Kf6 {[%clk 0:00:25.5]} 40. Nd4
{[%clk 0:00:47.1]} 40... Bc5 {[%clk 0:00:24.1]} 41. Nc2 {[%clk 0:00:45.6]} 41...
Ke5 {[%clk 0:00:19.7]} 42. Ne1 {[%clk 0:00:45.4]} 42... Bb4 {[%clk 0:00:18]} 43.
Nc2 {[%clk 0:00:45]} 43... Bd2 {[%clk 0:00:18.2]} 44. Kf2 {[%clk 0:00:42.5]}
44... Bd3 {[%clk 0:00:16.8]} 45. Ne3 {[%clk 0:00:41.5]} 45... Ba5 {[%clk
0:00:16.5]} 46. Ng4+ {[%clk 0:00:41.1]} 46... Kf5 {[%clk 0:00:16.7]} 47. Ne3+
{[%clk 0:00:41.4]} 47... Ke5 {[%clk 0:00:17]} 48. Ng4+ {[%clk 0:00:41.9]} 48...
Ke6 {[%clk 0:00:17.6]} 49. Be2 {[%clk 0:00:41.1]} 49... Bb6+ {[%clk 0:00:17.2]}
50. Kf1 {[%clk 0:00:40.1]} 50... Bb1 {[%clk 0:00:16.9]} 51. Bf3 {[%clk
0:00:38.8]} 51... Bf5 {[%clk 0:00:16.8]} 52. Nf2 {[%clk 0:00:38.4]} 52... Ke5
{[%clk 0:00:16.5]} 53. Kg2 {[%clk 0:00:38.1]} 53... Bc2 {[%clk 0:00:16.5]} 54.
Ng4+ {[%clk 0:00:38]} 54... Ke6 {[%clk 0:00:16.9]} 55. Nf2 {[%clk 0:00:38]}
55... Bd4 {[%clk 0:00:17.1]} 56. Ne4 {[%clk 0:00:38]} 56... Ke5 {[%clk
0:00:16.8]} 57. Ng5 {[%clk 0:00:37.5]} 57... h5 {[%clk 0:00:17]} 58. Nf7+ {[%clk
0:00:37.2]} 58... Kf6 {[%clk 0:00:16.9]} 59. Ng5 {[%clk 0:00:37.6]} 59... Be3
{[%clk 0:00:17.2]} 60. Ne4+ {[%clk 0:00:36.7]} 60... Ke5 {[%clk 0:00:17.5]} 61.
Nf2 {[%clk 0:00:35.3]} 61... Kd4 {[%clk 0:00:16.8]} 62. Nh3 {[%clk 0:00:35.2]}
62... Bf5 {[%clk 0:00:15.4]} 63. Nf2 {[%clk 0:00:33.8]} 63... Kc3 {[%clk
0:00:15]} 64. Ne4+ {[%clk 0:00:33.5]} 64... Kd3 {[%clk 0:00:14.6]} 65. Nd6
{[%clk 0:00:33.4]} 65... Be6 {[%clk 0:00:11.8]} 66. Be4+ {[%clk 0:00:32.5]}
66... Kd4 {[%clk 0:00:12.2]} 67. Bxg6 {[%clk 0:00:31.9]} 67... Ke5 {[%clk
0:00:12.6]} 68. Ne4 {[%clk 0:00:28.5]} 68... Bd5 {[%clk 0:00:10]} 69. Kf3 {[%clk
0:00:29]} 69... Ba7 {[%clk 0:00:09.7]} 70. Bh7 {[%clk 0:00:26.4]} 70... Bb6
{[%clk 0:00:09.3]} 71. Bg6 {[%clk 0:00:26.8]} 71... Bc5 {[%clk 0:00:08.9]} 72.
Bh7 {[%clk 0:00:27.3]} 72... Bd4 {[%clk 0:00:09.3]} 73. Bg6 {[%clk 0:00:27.8]}
73... Bc6 {[%clk 0:00:09.6]} 74. Bh7 {[%clk 0:00:28]} 74... Ba4 {[%clk
0:00:09.8]} 75. Ke2 {[%clk 0:00:24.8]} 75... Bb5+ {[%clk 0:00:08.8]} 76. Kd2
{[%clk 0:00:23.8]} 76... Bc6 {[%clk 0:00:07.5]} 77. Ng5 {[%clk 0:00:21.9]} 77...
Bf2 {[%clk 0:00:07.8]} 78. Bg6 {[%clk 0:00:21.9]} 78... Bxg3 {[%clk 0:00:08.1]}
79. Bxh5 {[%clk 0:00:22]} 79... Kf4 {[%clk 0:00:06.9]} 80. Ne6+ {[%clk
0:00:21.6]} 80... Ke5 {[%clk 0:00:06.5]} 81. Nc5 {[%clk 0:00:21.3]} 81... Bxh4
{[%clk 0:00:05.7]} 82. Nd3+ {[%clk 0:00:21.2]} 82... Kd4 {[%clk 0:00:06.1]} 83.
Bg6 {[%clk 0:00:21.5]} 83... Bg5+ {[%clk 0:00:05.9]} 84. Kc2 {[%clk 0:00:21.9]}
84... Ba4+ {[%clk 0:00:05.4]} 85. Kb2 {[%clk 0:00:22.3]} 85... Bd2 {[%clk
0:00:05.5]} 86. Nc1 {[%clk 0:00:20.3]} 86... Bc3+ {[%clk 0:00:04.9]} 87. Ka3
{[%clk 0:00:20.7]} 87... Bd1 {[%clk 0:00:03.8]} 88. Nb3+ {[%clk 0:00:20.9]}
88... Ke3 {[%clk 0:00:04]} 89. Bh7 {[%clk 0:00:20.2]} 89... Be5 {[%clk
0:00:04.2]} 90. Bg6 {[%clk 0:00:20.4]} 90... Bd6+ {[%clk 0:00:04.7]} 91. Ka2
{[%clk 0:00:20.3]} 91... Ke2 {[%clk 0:00:04.9]} 92. Nd4+ {[%clk 0:00:19.4]}
92... Kd2 {[%clk 0:00:03.8]} 93. Nb3+ {[%clk 0:00:19.4]} 93... Kc3 {[%clk
0:00:04.3]} 94. Bf7 {[%clk 0:00:19.5]} 94... Bb4 {[%clk 0:00:04.6]} 95. Bg8
{[%clk 0:00:19.8]} 95... Bc2 {[%clk 0:00:04.8]} 96. Bf7 {[%clk 0:00:20.2]} 96...
Bd3 {[%clk 0:00:05.3]} 97. Bg8 {[%clk 0:00:20.7]} 97... Bd6 {[%clk 0:00:05.6]}
98. Bf7 {[%clk 0:00:21.1]} 98... Bf4 {[%clk 0:00:06]} 99. Bg8 {[%clk 0:00:21.7]}
99... Bc2 {[%clk 0:00:06.3]} 100. Bf7 {[%clk 0:00:22.1]} 100... Bd1 {[%clk
0:00:06.3]} 101. Bg8 {[%clk 0:00:22.5]} 101... Bf3 {[%clk 0:00:06.4]} 102. Bf7
{[%clk 0:00:22.9]} 102... Be4 {[%clk 0:00:06.8]} 103. Bg8 {[%clk 0:00:23.1]}
103... Be5 {[%clk 0:00:07.3]} 104. Bf7 {[%clk 0:00:23.3]} 104... Kb4 {[%clk
0:00:07.8]} 105. Bg8 {[%clk 0:00:23]} 105... Bc2 {[%clk 0:00:08]} 106. Bf7
{[%clk 0:00:23.2]} 106... Bc3 {[%clk 0:00:08.7]} 107. Bg8 {[%clk 0:00:23.5]}
107... Bd3 {[%clk 0:00:08.7]} 108. Bf7 {[%clk 0:00:23.9]} 108... Be4 {[%clk
0:00:08.8]} 109. Bg8 {[%clk 0:00:24.4]} 109... Bf3 {[%clk 0:00:09.3]} 110. Bf7
{[%clk 0:00:24.9]} 110... Bd1 {[%clk 0:00:08]} 111. Bg8 {[%clk 0:00:24.9]}
111... Be1 {[%clk 0:00:08.9]} 112. Bf7 {[%clk 0:00:25.3]} 112... Kc3 {[%clk
0:00:09.5]} 113. Bg8 {[%clk 0:00:25.6]} 113... Bc2 {[%clk 0:00:09.5]} 114. Bf7
{[%clk 0:00:25.7]} 114... Bf2 {[%clk 0:00:09.5]} 115. Bg8 {[%clk 0:00:26.1]}
115... Be3 {[%clk 0:00:09.1]} 116. Bf7 {[%clk 0:00:26.6]} 116... Bh7 {[%clk
0:00:09.3]} 117. Be6 {[%clk 0:00:26.5]} 117... Bf4 {[%clk 0:00:09.3]} 118. Bf7
{[%clk 0:00:26.8]} 118... Kb4 {[%clk 0:00:09]} 119. Be6 {[%clk 0:00:27]} 119...
Kb5 {[%clk 0:00:09.4]} 120. Bf7 {[%clk 0:00:27.4]} 120... Kc6 {[%clk 0:00:09.7]}
121. Be6 {[%clk 0:00:27.9]} 121... Kd6 {[%clk 0:00:10.1]} 122. Bf7 {[%clk
0:00:28.3]} 122... Bd3 {[%clk 0:00:09.1]} 123. Bg8 {[%clk 0:00:28.3]} 123... Ke7
{[%clk 0:00:09.3]} 124. Bd5 {[%clk 0:00:28.5]} 124... Kf6 {[%clk 0:00:09.8]}
125. Bg8 {[%clk 0:00:28.6]} 125... Be4 {[%clk 0:00:08.4]} 126. Bc4 {[%clk
0:00:28.7]} 126... Ke5 {[%clk 0:00:08.2]} 127. Bg8 {[%clk 0:00:28.9]} 127... Bf5
{[%clk 0:00:08.1]} 128. Bf7 {[%clk 0:00:29.2]} 128... Bg5 {[%clk 0:00:08]} 129.
Bg8 {[%clk 0:00:29.4]} 129... Bd3 {[%clk 0:00:07.8]} 130. Bf7 {[%clk 0:00:29.6]}
130... Kd6 {[%clk 0:00:08.3]} 131. Bg8 {[%clk 0:00:29.9]} 131... Be4 {[%clk
0:00:08.8]} 1/2-1/2

[Event "*** SCC Grand Prix: Titled Tuesday Blitz"]
[Site "Chess.com"]
[Date "2020.10.06"]
[Round "9"]
[White "RaunakSadhwani2005"]
[Black "Joshukid"]
[Result "1-0"]
[WhiteElo "2902"]
[BlackElo "2715"]
[TimeControl "180+1"]
[EndTime "11:40:33 PDT"]
[Termination "RaunakSadhwani2005 won by resignation"]

1. c4 {[%clk 0:03:00.9]} 1... e5 {[%clk 0:02:57.5]} 2. Nc3 {[%clk 0:03:01.3]}
2... Nc6 {[%clk 0:02:58.3]} 3. g3 {[%clk 0:03:01.5]} 3... f5 {[%clk 0:02:58.3]}
4. Bg2 {[%clk 0:03:01.2]} 4... Nf6 {[%clk 0:02:59.2]} 5. e3 {[%clk 0:03:00.9]}
5... g6 {[%clk 0:02:55.6]} 6. Nge2 {[%clk 0:03:00.9]} 6... Bg7 {[%clk
0:02:56.3]} 7. d3 {[%clk 0:03:01.1]} 7... O-O {[%clk 0:02:55.7]} 8. O-O {[%clk
0:03:02]} 8... d6 {[%clk 0:02:56.2]} 9. Rb1 {[%clk 0:03:02.3]} 9... a5 {[%clk
0:02:55.8]} 10. a3 {[%clk 0:03:02.2]} 10... Be6 {[%clk 0:02:56.4]} 11. b4 {[%clk
0:03:02.2]} 11... axb4 {[%clk 0:02:57.3]} 12. axb4 {[%clk 0:03:03.1]} 12... Qd7
{[%clk 0:02:58.2]} 13. b5 {[%clk 0:03:03.3]} 13... Nd8 {[%clk 0:02:58.9]} 14.
Nd5 {[%clk 0:03:03.6]} 14... e4 {[%clk 0:02:52]} 15. Nxf6+ {[%clk 0:03:00.8]}
15... Bxf6 {[%clk 0:02:51.7]} 16. dxe4 {[%clk 0:03:01.3]} 16... Bxc4 {[%clk
0:02:48.9]} 17. exf5 {[%clk 0:03:01.3]} 17... Qxf5 {[%clk 0:02:49.1]} 18. Rb4
{[%clk 0:02:56.5]} 18... Qc5 {[%clk 0:02:36.4]} 19. Rxc4 {[%clk 0:02:54.7]} 1-0

[Event "*** SCC Grand Prix: Titled Tuesday Blitz"]
[Site "Chess.com"]
[Date "2020.10.06"]
[Round "9"]
[White "Obito24"]
[Black "GukeshDommaraju"]
[Result "0-1"]
[WhiteElo "2559"]
[BlackElo "2792"]
[TimeControl "180+1"]
[EndTime "11:41:41 PDT"]
[Termination "GukeshDommaraju won by resignation"]

1. Nf3 {[%clk 0:03:00.9]} 1... d5 {[%clk 0:02:58.5]} 2. b3 {[%clk 0:03:00.6]}
2... c5 {[%clk 0:02:57.5]} 3. Bb2 {[%clk 0:03:00.7]} 3... Nc6 {[%clk 0:02:58]}
4. d4 {[%clk 0:02:59.2]} 4... cxd4 {[%clk 0:02:57.3]} 5. Nxd4 {[%clk 0:03:00.1]}
5... Nf6 {[%clk 0:02:56.3]} 6. e3 {[%clk 0:02:59]} 6... g6 {[%clk 0:02:56.1]} 7.
Be2 {[%clk 0:02:59.3]} 7... Bg7 {[%clk 0:02:55.7]} 8. O-O {[%clk 0:02:59.9]}
8... O-O {[%clk 0:02:56.1]} 9. c4 {[%clk 0:02:53]} 9... dxc4 {[%clk 0:02:51.3]}
10. Bxc4 {[%clk 0:02:52.2]} 10... Bg4 {[%clk 0:02:44.1]} 11. Nxc6 {[%clk
0:02:33.5]} 11... Qxd1 {[%clk 0:02:43.3]} 12. Rxd1 {[%clk 0:02:28.3]} 12... Bxd1
{[%clk 0:02:43]} 13. Nxe7+ {[%clk 0:02:29]} 13... Kh8 {[%clk 0:02:43.1]} 14. Nc3
{[%clk 0:02:29.2]} 14... Bg4 {[%clk 0:02:42.2]} 15. f3 {[%clk 0:02:19.1]} 15...
Be6 {[%clk 0:02:41.5]} 16. Ncd5 {[%clk 0:02:04.5]} 16... Nxd5 {[%clk 0:02:40.2]}
17. Bxg7+ {[%clk 0:02:03.5]} 17... Kxg7 {[%clk 0:02:40]} 18. Bxd5 {[%clk
0:02:02.6]} 18... Rae8 {[%clk 0:02:38.8]} 0-1

[Event "*** SCC Grand Prix: Titled Tuesday Blitz"]
[Site "Chess.com"]
[Date "2020.10.06"]
[Round "9"]
[White "CzechmVIII"]
[Black "Trickov"]
[Result "1-0"]
[WhiteElo "2163"]
[BlackElo "2366"]
[TimeControl "180+1"]
[EndTime "11:42:47 PDT"]
[Termination "CzechmVIII won by resignation"]

1. e4 {[%clk 0:03:00.9]} 1... c5 {[%clk 0:02:51.7]} 2. Nf3 {[%clk 0:02:59.7]}
2... d6 {[%clk 0:02:50.7]} 3. Nc3 {[%clk 0:02:59.7]} 3... Nf6 {[%clk 0:02:48.9]}
4. d4 {[%clk 0:02:59.7]} 4... cxd4 {[%clk 0:02:48]} 5. Nxd4 {[%clk 0:03:00.6]}
5... a6 {[%clk 0:02:48.4]} 6. Bg5 {[%clk 0:03:00.3]} 6... e6 {[%clk 0:02:47.8]}
7. f4 {[%clk 0:03:00.2]} 7... Qb6 {[%clk 0:02:48.3]} 8. Qd2 {[%clk 0:02:59.4]}
8... Qxb2 {[%clk 0:02:48.9]} 9. Nb3 {[%clk 0:02:59.5]} 9... Qa3 {[%clk
0:02:40.1]} 10. Bxf6 {[%clk 0:02:56.4]} 10... gxf6 {[%clk 0:02:39.5]} 11. Be2
{[%clk 0:02:57]} 11... Nc6 {[%clk 0:02:36.8]} 12. O-O {[%clk 0:02:53.7]} 12...
Qb4 {[%clk 0:02:35.6]} 13. Qe3 {[%clk 0:02:50.1]} 13... Bd7 {[%clk 0:02:12.7]}
14. a3 {[%clk 0:02:34.6]} 14... Qxc3 {[%clk 0:01:17.2]} 15. Qxc3 {[%clk
0:02:34]} 15... Bg7 {[%clk 0:01:17.8]} 16. Qg3 {[%clk 0:02:30.8]} 16... Rg8
{[%clk 0:01:12.6]} 17. Rad1 {[%clk 0:02:24.1]} 17... Ke7 {[%clk 0:01:11.6]} 18.
Qd3 {[%clk 0:02:06.9]} 1-0

[Event "*** SCC Grand Prix: Titled Tuesday Blitz"]
[Site "Chess.com"]
[Date "2020.10.06"]
[Round "9"]
[White "BanjoKazooieN64"]
[Black "Mbneu"]
[Result "0-1"]
[WhiteElo "2472"]
[BlackElo "2353"]
[TimeControl "180+1"]
[EndTime "11:43:12 PDT"]
[Termination "Mbneu won by checkmate"]

1. e4 {[%clk 0:03:00.9]} 1... c5 {[%clk 0:02:59.6]} 2. Nc3 {[%clk 0:02:59.3]}
2... a6 {[%clk 0:02:58.2]} 3. Nf3 {[%clk 0:02:58.6]} 3... b5 {[%clk 0:02:58.6]}
4. d4 {[%clk 0:02:59]} 4... cxd4 {[%clk 0:02:53.1]} 5. Nxd4 {[%clk 0:02:59.9]}
5... e6 {[%clk 0:02:52.8]} 6. Bd3 {[%clk 0:02:59.2]} 6... Bb7 {[%clk 0:02:51.4]}
7. O-O {[%clk 0:02:58.6]} 7... Nc6 {[%clk 0:02:51]} 8. Nf3 {[%clk 0:02:58.4]}
8... Nge7 {[%clk 0:02:49.1]} 9. Re1 {[%clk 0:02:58.3]} 9... Ng6 {[%clk
0:02:48.1]} 10. Nd5 {[%clk 0:02:57.4]} 10... Bc5 {[%clk 0:02:29.1]} 11. b4
{[%clk 0:02:54.1]} 11... Nxb4 {[%clk 0:02:18.8]} 12. Bb2 {[%clk 0:02:54.5]}
12... Nxd5 {[%clk 0:02:08.7]} 13. exd5 {[%clk 0:02:54.3]} 13... O-O {[%clk
0:02:08.3]} 14. Ne5 {[%clk 0:02:48.6]} 14... Qh4 {[%clk 0:00:33.2]} 15. g3
{[%clk 0:02:28.6]} 15... Qh3 {[%clk 0:00:31.4]} 16. Bf1 {[%clk 0:02:19.6]} 16...
Qf5 {[%clk 0:00:26.6]} 17. Nxd7 {[%clk 0:02:19.8]} 17... Qxf2+ {[%clk
0:00:24.7]} 18. Kh1 {[%clk 0:02:20.1]} 18... Qg1# {[%clk 0:00:24.7]} 0-1

[Event "*** SCC Grand Prix: Titled Tuesday Blitz"]
[Site "Chess.com"]
[Date "2020.10.06"]
[Round "9"]
[White "KarstenHansch"]
[Black "Ermito2020"]
[Result "1/2-1/2"]
[WhiteElo "2510"]
[BlackElo "2658"]
[TimeControl "180+1"]
[EndTime "11:43:16 PDT"]
[Termination "Game drawn by agreement"]

1. e4 {[%clk 0:03:00.9]} 1... c6 {[%clk 0:03:00]} 2. d4 {[%clk 0:03:00.6]} 2...
d5 {[%clk 0:03:00.9]} 3. e5 {[%clk 0:03:01.1]} 3... Bf5 {[%clk 0:03:00.2]} 4.
Nf3 {[%clk 0:03:01.4]} 4... e6 {[%clk 0:03:00.7]} 5. Be2 {[%clk 0:03:01.7]} 5...
Ne7 {[%clk 0:03:01.3]} 6. O-O {[%clk 0:03:00.3]} 6... c5 {[%clk 0:03:01.8]} 7.
c3 {[%clk 0:02:58.8]} 7... Nec6 {[%clk 0:03:01.1]} 8. Be3 {[%clk 0:02:49.4]}
8... Nd7 {[%clk 0:03:01.6]} 9. Nbd2 {[%clk 0:02:48.6]} 9... Be7 {[%clk 0:03:02]}
10. Nb3 {[%clk 0:02:47.9]} 10... O-O {[%clk 0:02:52.6]} 11. Nxc5 {[%clk
0:02:47.2]} 11... Bxc5 {[%clk 0:02:49.7]} 12. dxc5 {[%clk 0:02:47.5]} 12...
Ndxe5 {[%clk 0:02:50.3]} 13. Nxe5 {[%clk 0:02:47.7]} 13... Nxe5 {[%clk
0:02:51.2]} 14. b4 {[%clk 0:02:46.4]} 14... Nc4 {[%clk 0:02:41.5]} 15. Bxc4
{[%clk 0:02:43.2]} 15... dxc4 {[%clk 0:02:41.5]} 16. Qxd8 {[%clk 0:02:43]} 16...
Rfxd8 {[%clk 0:02:41.3]} 17. Rfd1 {[%clk 0:02:42.8]} 17... Bd3 {[%clk
0:02:39.5]} 18. Bf4 {[%clk 0:02:41.9]} 18... f6 {[%clk 0:02:38.8]} 19. Bd6
{[%clk 0:02:42.1]} 19... e5 {[%clk 0:02:39]} 20. a4 {[%clk 0:02:42.2]} 20... Kf7
{[%clk 0:02:36.7]} 21. f3 {[%clk 0:02:42.3]} 21... Ke6 {[%clk 0:02:30]} 22. Kf2
{[%clk 0:02:42.5]} 22... a6 {[%clk 0:02:22.5]} 23. Re1 {[%clk 0:02:34.4]} 23...
Kf7 {[%clk 0:02:19.9]} 24. f4 {[%clk 0:02:30.8]} 24... e4 {[%clk 0:02:11.5]} 25.
Ke3 {[%clk 0:02:30.4]} 25... f5 {[%clk 0:02:11.6]} 26. Kd4 {[%clk 0:02:29.3]}
26... Ke6 {[%clk 0:02:11.6]} 27. Re3 {[%clk 0:02:27.9]} 27... g6 {[%clk
0:02:10.5]} 28. Rh3 {[%clk 0:02:27.4]} 28... Rd7 {[%clk 0:02:10.3]} 29. Rd1
{[%clk 0:02:18.3]} 29... Rad8 {[%clk 0:02:09.4]} 30. Ke3 {[%clk 0:02:18.6]}
30... Bc2 {[%clk 0:02:02.8]} 31. Rd4 {[%clk 0:02:06.1]} 31... Bd3 {[%clk
0:01:44.7]} 32. a5 {[%clk 0:02:05.4]} 32... Rc8 {[%clk 0:01:40.5]} 33. Be5
{[%clk 0:02:00.8]} 33... Rcd8 {[%clk 0:01:37.3]} 34. Rd6+ {[%clk 0:01:57.6]}
34... Rxd6 {[%clk 0:01:35.9]} 35. Bxd6 {[%clk 0:01:57.7]} 1/2-1/2

[Event "*** SCC Grand Prix: Titled Tuesday Blitz"]
[Site "Chess.com"]
[Date "2020.10.06"]
[Round "9"]
[White "kasparicy"]
[Black "besarquis"]
[Result "1-0"]
[WhiteElo "2379"]
[BlackElo "2220"]
[TimeControl "180+1"]
[EndTime "11:43:24 PDT"]
[Termination "kasparicy won by resignation"]

1. e4 {[%clk 0:03:00.9]} 1... e5 {[%clk 0:02:59.3]} 2. Nf3 {[%clk 0:03:00.4]}
2... Nc6 {[%clk 0:02:59.3]} 3. Bc4 {[%clk 0:03:00.4]} 3... Bc5 {[%clk
0:02:57.3]} 4. c3 {[%clk 0:02:59.8]} 4... Nf6 {[%clk 0:02:57.4]} 5. d3 {[%clk
0:02:59.3]} 5... d6 {[%clk 0:02:57.7]} 6. Nbd2 {[%clk 0:02:59.3]} 6... a6 {[%clk
0:02:58.3]} 7. Bb3 {[%clk 0:02:59.7]} 7... Ba7 {[%clk 0:02:58.6]} 8. h3 {[%clk
0:03:00.2]} 8... h6 {[%clk 0:02:59]} 9. Nf1 {[%clk 0:03:00.7]} 9... Ne7 {[%clk
0:02:59.3]} 10. Ng3 {[%clk 0:03:01.1]} 10... Ng6 {[%clk 0:02:59.6]} 11. Qe2
{[%clk 0:02:56.8]} 11... Be6 {[%clk 0:02:59.8]} 12. Bc2 {[%clk 0:02:55.4]} 12...
O-O {[%clk 0:02:59.2]} 13. Nf5 {[%clk 0:02:51.9]} 13... d5 {[%clk 0:02:51.9]}
14. g4 {[%clk 0:02:50.7]} 14... Nh7 {[%clk 0:02:38.7]} 15. Bd2 {[%clk
0:02:43.7]} 15... Re8 {[%clk 0:02:36.3]} 16. O-O-O {[%clk 0:02:40.5]} 16... Nf4
{[%clk 0:02:31.6]} 17. Bxf4 {[%clk 0:02:39.5]} 17... exf4 {[%clk 0:02:31.8]} 18.
h4 {[%clk 0:02:31.5]} 18... c6 {[%clk 0:02:11.3]} 19. Kb1 {[%clk 0:02:15.6]}
19... Qa5 {[%clk 0:02:09.2]} 20. Bb3 {[%clk 0:01:56.7]} 20... dxe4 {[%clk
0:02:03.6]} 21. dxe4 {[%clk 0:01:54.5]} 21... Bxb3 {[%clk 0:01:56.9]} 22. axb3
{[%clk 0:01:55.4]} 22... Nf6 {[%clk 0:01:57]} 23. Nd6 {[%clk 0:01:48.1]} 23...
Re7 {[%clk 0:01:47.9]} 24. g5 {[%clk 0:01:47.9]} 24... Ne8 {[%clk 0:01:28.9]}
25. gxh6 {[%clk 0:01:42.7]} 25... Nxd6 {[%clk 0:01:25.1]} 26. Rxd6 {[%clk
0:01:43.6]} 26... Qe5 {[%clk 0:01:22.7]} 27. Nxe5 {[%clk 0:01:34.6]} 1-0

[Event "*** SCC Grand Prix: Titled Tuesday Blitz"]
[Site "Chess.com"]
[Date "2020.10.06"]
[Round "9"]
[White "dosto07"]
[Black "Quiet_Desperation"]
[Result "1-0"]
[WhiteElo "2343"]
[BlackElo "1941"]
[TimeControl "180+1"]
[EndTime "11:43:28 PDT"]
[Termination "dosto07 won by resignation"]

1. e4 {[%clk 0:02:35]} 1... e6 {[%clk 0:02:59.8]} 2. d4 {[%clk 0:02:33.8]} 2...
d5 {[%clk 0:02:59.9]} 3. Nd2 {[%clk 0:02:33.4]} 3... Nf6 {[%clk 0:02:59.8]} 4.
e5 {[%clk 0:02:33]} 4... Nfd7 {[%clk 0:03:00]} 5. Bd3 {[%clk 0:02:33.2]} 5... c5
{[%clk 0:03:00.1]} 6. c3 {[%clk 0:02:33.7]} 6... Nc6 {[%clk 0:03:00.4]} 7. Ne2
{[%clk 0:02:32.4]} 7... cxd4 {[%clk 0:03:00.5]} 8. cxd4 {[%clk 0:02:32.9]} 8...
f6 {[%clk 0:03:01]} 9. exf6 {[%clk 0:02:33.5]} 9... Nxf6 {[%clk 0:03:00.6]} 10.
Nf3 {[%clk 0:02:34.1]} 10... Bd6 {[%clk 0:03:00.9]} 11. Bf4 {[%clk 0:02:30.3]}
11... Bxf4 {[%clk 0:02:30.2]} 12. Nxf4 {[%clk 0:02:29.2]} 12... O-O {[%clk
0:02:31.1]} 13. O-O {[%clk 0:02:28.7]} 13... Ne4 {[%clk 0:02:30.6]} 14. Nh5
{[%clk 0:02:27]} 14... Bd7 {[%clk 0:02:16]} 15. Re1 {[%clk 0:02:24.2]} 15...
Nxf2 {[%clk 0:02:02.4]} 16. Kxf2 {[%clk 0:02:20.2]} 16... Qh4+ {[%clk
0:02:02.5]} 17. Ng3 {[%clk 0:02:19.1]} 17... Qxd4+ {[%clk 0:01:39.7]} 18. Re3
{[%clk 0:01:48.2]} 18... Qxb2+ {[%clk 0:01:39.7]} 19. Kg1 {[%clk 0:01:43.6]}
19... e5 {[%clk 0:01:36.4]} 20. Rb1 {[%clk 0:01:38.9]} 20... Qxb1 {[%clk
0:01:22]} 21. Bxb1 {[%clk 0:01:38]} 21... e4 {[%clk 0:01:22.9]} 22. Qxd5+ {[%clk
0:01:34.6]} 22... Kh8 {[%clk 0:01:23.2]} 23. Qxe4 {[%clk 0:01:20.4]} 1-0